Cogmind - Beta 17.1 @@@ ROGUE MODE // 2026.08.31 @ 11:18:51 Player: pirluit Result: Destroyed by PM-OS8(R) with Subdweller Machine Gun Performance ------------- Evolutions (0) 0 Regions Visited (2) 400 Robots Destroyed (6) 30 Value Destroyed (240) 240 Prototype IDs (0) 0 Alien Tech Used (0) 0 Bonus (0) 0 TOTAL SCORE: 670 Bonus ------- None Cogmind --------- Core Integrity 0/250 Matter 281/300 Energy 199/200 System Corruption 0% Temperature Cool (0) Movement Rolling (110) Location -10/Subcaves Parts ------- > --- POWER (1) -------- Subdweller Power Source > --- PROPULSION (2) --- Subdweller Monowheel > --- UTILITY (2) ------ Small Storage Unit Signal Interpreter > --- WEAPON (2) ------- Subdweller Machine Gun > --- INVENTORY (8) ---- Wheel Compact Wheel Improved Heat Sink Subdweller Optics Subdweller Beam Cannon Light Assault Rifle Piercing Trap Peak State ------------ > --- POWER ------------ Ion Engine > --- PROPULSION ------- Subdweller Monowheel Subdweller Monowheel > --- UTILITY ---------- Small Storage Unit Signal Interpreter > --- WEAPON ----------- Subdweller Machine Gun Flamer > --- INVENTORY -------- Wheel Compact Wheel Improved Heat Sink Subdweller Optics Subdweller Beam Cannon Assault Rifle Light Assault Rifle Piercing Trap [Rating: 12] Favorites ----------- Power Ion Engine Engine Ion Engine Propulsion Aluminum Leg Leg Aluminum Leg Wheel Subdweller Monowheel Utility Small Storage Unit Device Terrain Scanner Storage Small Storage Unit Processor Signal Interpreter Weapon Medium Laser Energy Gun Medium Laser Ballistic Gun Assault Rifle Special Weapon Flamer Build | -11 -10 -10 ------- Run | Yrd Mat Sub Slots Evolved . | . . . Power . | . . . Propulsion . | . . . Utility . | . . . Weapon . | . . . Parts Attached 15 | 7 2 6 Power 4 | 2 . 2 Engine 4 | 2 . 2 Core . | . . . Reactor . | . . . Propulsion 4 | 2 . 2 Treads . | . . . Leg 2 | 2 . . Wheel 2 | . . 2 Hover . | . . . Flight . | . . . Utility 3 | 1 2 . Device 1 | . 1 . Storage 1 | 1 . . Processor 1 | . 1 . Hackware . | . . . Protection . | . . . Artifact . | . . . Weapon 4 | 2 . 2 Energy Gun 1 | 1 . . Energy Cannon . | . . . Ballistic Gun 2 | 1 . 1 Ballistic Cannon . | . . . Launcher . | . . . Special Weapon 1 | . . 1 Impact Weapon . | . . . Slashing Weapon . | . . . Piercing Weapon . | . . . Special Melee Weapon . | . . . Unidentified Prototypes . | . . . Parts Lost 6 | . . 6 Power 2 | . . 2 Propulsion 3 | . . 3 Utility . | . . . Weapon 1 | . . 1 Highest Loss Streak 3 | . . 3 To Critical Strikes . | . . . Average Backups 6 | 2 6 7 Power . | . 1 . Propulsion 2 | 1 4 2 Utility 1 | . . 1 Weapon 1 | . 1 1 Tool/Special . | . . . Unused Backups 9 | . . 9 Power . | . . . Propulsion 4 | . . 4 Utility 3 | . . 3 Weapon 2 | . . 2 Tool/Special . | . . . Average Slot Usage (%) 98 | . 97 99 Engine 14 | . 14 14 Leg 14 | . 28 11 Wheel 13 | . . 15 Storage 14 | . 14 14 Processor 13 | . 8 14 Energy Gun 8 | . 14 7 Ballistic Gun 14 | . 14 14 Special Weapon 5 | . . 6 Peak Build Rating 12 | 6 7 12 Average Rating 9 | 4 6 10 On Entrance 4 | . 6 7 Avg Prop Armor Cover (%) . | . . . Naked Turns . | . . . Heaviest Build 16 | 14 15 16 Greatest Support 40 | 20 20 40 Greatest Overweight (x) . | . . . Average Overweight (x) . | . . . Largest Inventory Capacity 8 | 8 8 8 Average Capacity 7 | 7 8 8 Most Carried 8 | 6 7 8 Average Carried 7 | 2 6 7 Final Capacity 8 | 8 8 8 Final Carried 7 | 6 7 7 Class Distribution -------------------- 100% | Mutant Dominant Class ---------------- Mutant | -10/Materials Mutant | -10/Subcaves Resources | -11 -10 -10 ----------- Run | Yrd Mat Sub Matter Collected 402 | 217 . 185 Remotely . | . . . Salvage Created 272 | . . 272 Parts 12 | . . 12 Haulers Intercepted . | . . . Recyclers Shooed . | . . . Parts Field Recycled . | . . . Retrieved Matter . | . . . Parts Self-Destructed 4 | . . 4 Prevented . | . . . Parts Restored . | . . . Kills | -11 -10 -10 ------- Run | Yrd Mat Sub Combat Hostiles Destroyed 6 | . . 6 Guns 6 | . . 6 Classes Destroyed 1 | . . 1 Subdweller 6 | . . 6 Best Kill Streak 2 | . . 2 Combat Bots Only 2 | . . 2 Max Kills in Single Turn 1 | . . 1 Gunslinging . | . . . Exploded . | . . . Melee . | . . . Uniques/NPCs Destroyed . | . . . Combat | -11 -10 -10 -------- Run | Yrd Mat Sub Hostile Shots Fired 65 | . . 65 Missed 20 | . . 20 Hits 45 | . . 45 Projectile 45 | . . 45 AOE 1 | . . 1 Critical Strikes 1 | . . 1 Damage Taken 965 | . . 965 Core 256 | . . 256 Absorbed by Shields . | . . . Core Remaining (%) 100 | 100 . . Volleys Fired 42 | . 2 40 Largest 2 | . 2 2 Hottest 130 | . 70 130 Shots Fired 74 | . 4 70 Gun 71 | . 4 67 Cannon . | . . . Launcher . | . . . Special 3 | . . 3 Kinetic 42 | . 2 40 Thermal 32 | . 2 30 Explosive . | . . . Electromagnetic . | . . . Robot Hit Streak 21 | . . 21 Robot Miss Streak 1 | . . 1 Penetration Max . | . . . Secondary Targets . | . . . Shots Hit Robots 54 | . . 54 Core Hits 13 | . . 13 Critical Kills . | . . . Critical Parts Destroyed . | . . . Critical Strikes 5 | . . 5 Burn 4 | . . 4 Destroy 1 | . . 1 Melee Attacks . | . . . Impact . | . . . Slashing . | . . . Piercing . | . . . Sneak Attacks . | . . . Combat Hostiles . | . . . Follow-up Attacks . | . . . Damage Inflicted 759 | . . 759 Guns 737 | . . 737 Cannons . | . . . Explosions . | . . . Melee . | . . . Ramming . | . . . Kinetic 512 | . . 512 Thermal 247 | . . 247 Explosive . | . . . Electromagnetic . | . . . Impact . | . . . Slashing . | . . . Piercing . | . . . Highest Corruption . | . . . Average Corruption . | . . . Corruption Purged . | . . . Corruption Blocked . | . . . Overload Shots . | . . . Overflow Damage . | . . . Projectiles . | . . . Explosions . | . . . Melee . | . . . Knockbacks . | . . . Impact . | . . . Kinetic . | . . . Secondary . | . . . Self-Inflicted Damage . | . . . Shots . | . . . Rammed . | . . . Targets Rammed . | . . . Kicked . | . . . Crushed . | . . . Highest Temperature 18 | . 18 . Average Temperature 10 | . 10 . Received Heat Transfer 117 | . . 117 Siege Activations . | . . . Martial Activations . | . . . Shielding Activations . | . . . Robots Disrupted . | . . . Combat Hostiles . | . . . Robots Corrupted . | . . . Combat Hostiles . | . . . Parts Fried . | . . . Impact Corruptions . | . . . Robots Melted . | . . . Combat Hostiles . | . . . Parts Melted 3 | . . 3 Heat Transferred 1122 | . . 1122 Parts Sabotaged . | . . . Parts Stolen . | . . . Parts Stripped . | . . . Power Chain Reactions . | . . . Alert | -11 -10 -10 ------- Run | Yrd Mat Sub Maximum Alert Level . | . . . Low Security (%) 100 | 100 100 . Level 1 . | . . . Level 2 . | . . . Level 3 . | . . . Level 4 . | . . . Level 5 . | . . . High Security . | . . . Max Security . | . . . Peak Influence 12 | . 12 . Initial . | . . . Average . | . . . Influence Increases 12 | . 12 . Successful Hack 12 | . 12 . Influence Decreases 12 | . 12 . Time Decay 12 | . 12 . Squads Dispatched . | . . . Investigation . | . . . Extermination . | . . . Reinforcement . | . . . Assault . | . . . Garrison . | . . . Intercept . | . . . Searches Triggered . | . . . Construction Impeded . | . . . Haulers Reinforced . | . . . Active Scanning Responses . | . . . Cargo Convoy Interrupts . | . . . Stealth | -11 -10 -10 --------- Run | Yrd Mat Sub Distress Signals . | . . . Communications Jammed . | . . . Distress Signals . | . . . Times Spotted 9 | . . 9 Peak Tracking Total 2 | . . 2 Tactical Retreats . | . . . Traps | -11 -10 -10 ------- Run | Yrd Mat Sub Traps Triggered . | . . . Indirectly . | . . . Trap Hack Attempts . | . . . Triggered . | . . . Disarmed . | . . . Reprogrammed . | . . . Reused . | . . . Traps Extracted . | . . . Installed . | . . . Triggered . | . . . Most Traps Carried 1 | . . 1 Machines | -11 -10 -10 ---------- Run | Yrd Mat Sub Machines Disabled . | . . . Max in Single Turn . | . . . Machines Repaired . | . . . Machines Dismantled . | . . . Machines Sabotaged . | . . . Overloaded Fab Kills . | . . . Hacking | -11 -10 -10 --------- Run | Yrd Mat Sub Machines Accessed 1 | . 1 . Terminals 1 | . 1 . Fabricators . | . . . Repair Stations . | . . . Recycling Units . | . . . Scanalyzers . | . . . Garrison Access . | . . . Total Hacks 1 | . 1 . Successful 1 | . 1 . Failed . | . . . Catastrophic . | . . . Database Lockouts . | . . . Manual . | . . . Terminals 1 | . 1 . Fabricators . | . . . Repair Stations . | . . . Recycling Units . | . . . Scanalyzers . | . . . Garrison Access . | . . . Terminal Hacks 1 | . 1 . Record 1 | . 1 . Fabricator Hacks . | . . . Repair Station Hacks . | . . . Recycling Unit Hacks . | . . . Scanalyzer . | . . . Garrison Access Hacks . | . . . Unauthorized Hacks . | . . . Terminals . | . . . Fabricators . | . . . Repair Stations . | . . . Recycling Units . | . . . Scanalyzers . | . . . Garrison Access . | . . . Data Cores Recovered . | . . . Used . | . . . Hacking Detections 1 | . 1 . Full Trace Events . | . . . Feedback Events . | . . . Feedback Blocked . | . . . Robot Schematics Acquired . | . . . Robots Built . | . . . Authchips . | . . . Time . | . . . Total Robot Build Rating . | . . . Part Schematics Acquired . | . . . Parts Built . | . . . Authchips . | . . . Time . | . . . Total Part Build Rating . | . . . Part Studies Acquired . | . . . Parts Repaired . | . . . Time . | . . . Parts Recycled . | . . . Recycled Matter . | . . . Retrieved Matter . | . . . Retrieved Components . | . . . Parts Scanalyzed . | . . . Part Schematics Acquired . | . . . Parts Damaged . | . . . Bothacking | -11 -10 -10 ------------ Run | Yrd Mat Sub Used RIF Installer . | . . . Robots Hacked . | . . . Non-combat . | . . . Combat . | . . . Robot Hacks Applied . | . . . Relay Couplers Released . | . . . Fabnet Peak Effective % . | . . . Robots Rewired . | . . . Allies Hacked . | . . . Hacks Repelled . | . . . Allies | -11 -10 -10 -------- Run | Yrd Mat Sub Total Allies . | . . . Largest Group . | . . . Highest-Rated Group . | . . . Highest-Rated Ally . | . . . Total Orders . | . . . Ally Attacks . | . . . Total Damage . | . . . Kills . | . . . Allies Corrupted . | . . . Allies Melted . | . . . Intel | -11 -10 -10 ------- Run | Yrd Mat Sub Active Infowar (turns) 41 | . 41 . Terrain 41 | . 41 . Robot Analysis Total . | . . . Derelict Logs Recovered 2 | . . 2 Drone Launches . | . . . Drone Recoveries . | . . . Exploration | -11 -10 -10 ------------- Run | Yrd Mat Sub Turns Passed 1175 | 84 164 927 Spaces Moved 881 | 61 129 691 Core 6 | 6 . . Treads . | . . . Legs 440 | 55 129 256 Wheels 435 | . . 435 Hover . | . . . Flight . | . . . Fastest Speed 50 | 50 120 110 Average Speed 114 | 113 120 113 Slowest Speed 120 | 120 120 120 Overloaded Moves . | . . . Propulsion Burnouts . | . . . Robots Hopped . | . . . Potential Cave-ins . | . . . Cave-ins Triggered . | . . . Exploration Rate (%) 21 | 4 15 46 Regions Visited 2 Branch Regions 1 Pre-discovered Areas 1 | . . 1 Known Exits Taken 1 | . 1 . Unknown Exits Taken 1 | 1 . . Scrap Searched . | . . . Spaces Dug . | . . . Terrain Destroyed . | . . . Melee . | . . . Projectile . | . . . AOE . | . . . Terrain Rammed . | . . . Walls Destroyed . | . . . Machines Disabled . | . . . Actions | -11 -10 -10 --------- Run | Yrd Mat Sub Total 970 | 72 134 764 Wait 9 | . . 9 Move 879 | 60 128 691 Hop . | . . . Pick Up 16 | 5 1 10 Fast Attach 8 | 6 1 1 Attach 5 | . 1 4 Detach 1 | . 1 . Swap 2 | 1 . 1 Drop 8 | . . 8 Fire 42 | . 2 40 Melee . | . . . Ram . | . . . Kick . | . . . Crush . | . . . Escape Stasis . | . . . Rewire . | . . . Trap . | . . . Miscellaneous . | . . . Route ------- -11/Scrapyard -10/Materials -10/Subcaves (discovered 1 exit: *Scr) History --------- Turn | Location | Event 10 | -11/Scrapyard | Discovered new exit (range 14) 85 | -11/Scrapyard | Entered Materials 86 | -10/Materials | Met a group of wandering Federalists 166 | -10/Materials | Discovered new exit (range 8) 171 | -10/Materials | Identified exit to Subcaves 249 | -10/Materials | Entered Subcaves 250 | -10/Subcaves | Continued accompanying wandering Federalists (6) 323 | -10/Subcaves | Build established: Mutant 384 | -10/Subcaves | Learned 2 Materials zone layouts 637 | -10/Subcaves | Core integrity fell below 50% 673 | -10/Subcaves | Lost 3 parts (1p2n) 728 | -10/Subcaves | Learned Materials non-interactive machine intel 756 | -10/Subcaves | Shifting Twisted Machinery released Flamer 847 | -10/Subcaves | Learned location of Zion (-7) 847 | -10/Subcaves | Met a Zionite searching for "candidates" 1098 | -10/Subcaves | Identified exit to Scraptown 1138 | -10/Subcaves | Ambushed by Subdwellers from Twisted Machinery 1165 | -10/Subcaves | Core integrity fell below 20% 1176 | -10/Subcaves | Destroyed by PM-OS8(R) with Subdweller Machine Gun Last Messages --------------- 00780_ Dropped Assault Rifle. 00781_ Acquired Sub. Power Source. 00793_ Subatomizers dissect the Sub. Monowheel. 00845_ 2I-TZR(z): "She is not going to be happy we haven't found any suitable candidates yet." 00847_ 2I-TZR(z): "Hey you! It's really dangerous down here, I feel that you could die at any moment. For your health and safety might I suggest a trip to Zion?" World map updated: -7/Zion. 00944_ Acquired 12 matter. 00985_ Subatomizers dissect the Sub. Monowheel. 01098_ EXIT=IDENTIFIED: SCRAPTOWN 01138_ PM-OS8(R) emerges from the Twisted Machinery. 01160_ Flamer destroyed. 01164_ Ion Engine destroyed. 01174_ Sub. Monowheel destroyed. 01176_ V6-U61(R) suffers critical hit (Destroy). Map ----- +----------------------------------------------------+ | ???????????????????# ## ???????????## #? | | ???????????????????# ??????????## ##? | | ???????????????????# ??????????# ##?? | | ????????????????????# ##????????## ##?? | | ?????????????????????# ###???##### #?? | | ??????????????????????# ##### ### | | ??????????????????????## ## ## | | ????????????????????#?# #### | | ????????????????????# #" ## #??# | | ????????????????????# ####### #??# | | ????????????????????# #" #????#####??# | | ??????????????????????## #??????????## | | ??????????????????????# #??????????# | | ??????????????????????###### ##?????????# ## | | ??????????????????????????## ##??????" #### | | ???????????????????????##?# #?????""" " ???### | | ???????????????????????# ## #??????""" " ?????# | | ???????????????????????# # ##?????"" """?????? | | ????????????????????????# ##????? "?""?????? | | ????????????????????????# #?#?? ?????????? | | ????????????????????????## #"## "???????? | | ?????????????????????????#### "" "???????? | | ???????????????????#???????## "" "???????? | | ??????????????????## ????## # "" # ""??????? | | ??????????????????# ### R #######??? ???????? | | ???????????????????# @ R #?????????????????? | | ???????????????????# "#???????????????? | | ??????????????????# ^ ! "##???????????????? | | ??????????????????# !% ###????????????????? | | ??????????????????# !^ ^ #??????????????????? | | ????????????????? ## #?????????????????? | | ??????????????? #?### #?????????????????? | | ?????????????? ????### ?????????????????? | | ????????????? ## ???????## ????????????????? | | ????????????? ??## ?????????# ???????????????? | | ?????????????? ????#???????????# ??????????????? | | ???????????????????????????????? ?????????????? | | ???????????????????????????????? ?????????????? | | ????????????????????????????????? ??????????????? | | ?????????????????????????????????????????????????? | | ?????????????????????????????????????????????????? | | ?????????????????????????????????????????????????? | | ?????????????????????????????????????????????????? | | ?????????????????????????????????????????????????? | | ?????????????????????????????????????????????????? | | ?????????????????????????????????????????????????? | | ?????????????????????????????????????????????????? | | ?????????????????????????????????????????????????? | | ?????????????????????????????????????????????????? | | ?????????????????????????????????????????????????? | +----------------------------------------------------+ Best States ------------- Heat Dissipation 25 Energy Generation 15 Energy Capacity 250 Matter Stores 300 Matter Capacity 300 Sight Range 16 Terrain Scan Range 14 Terrain Scan Density 10 Evasion (%) 55 Item Schematics ----------------- None Robot Schematics ------------------ None Fabricated ------------ Nothing Repaired ---------- Nothing Studied --------- None Alien Tech Used ----------------- None Achievements -------------- Strength In Numbers Challenges ------------ None Game ------ Seed PowerFlyingBeamcaster Manual? 0 Play Time 00:15:42 Cumulative 8.7 hours Start 2026.08.31 @ 11:02:56 End 2026.08.31 @ 11:18:51 Sessions 1 Manual Loads 0 Difficulty Rogue Special Mode None Game No. 6 Rogue 6 Adventurer 0 Explorer 0 Win Type - Total 0 Types 0/0/0/0/0/0/0/0/0/0 Lore% 1 Gallery% 9 Achievement% 9 Wizard Run 0 Options --------- Layout 1 ASCII 0 Keyboard 0 Movement Mouse Keybinds 0 Fullscreen 1 Font 24/Smallcaps Map View 50x35 Zoom Use 0% Tactical HUD 1 Map Filters NONE Filters NONE Steam 1 RUN: 8482be4b-212b-47b8-b68c-c718f10dcfd4